fUSD/lending_fUSD_20241225
["ID","MTS","AMOUNT","RATE_DAILY","PERIOD"]
[346607869,1735124135909,500.0,9.645e-05,2]
[346607870,1735124136041,567.81,9.644e-05,2]
[346607871,1735124136132,500.0,9.643e-05,2]
[346607872,1735124136409,150.0,9.645e-05,2]
[346607873,1735124136477,619.27,9.644e-05,2]
[346607874,1735124136565,619.27,9.918e-05,2]
[346607875,1735124136662,619.27,0.00010192,2]
[346607876,1735124136763,619.27,0.00010466,2]
[346607877,1735124136849,619.27,0.0001074,2]
[346607878,1735124136945,889.47,9.644e-05,2]
[346607879,1735124137026,500.0,9.643e-05,2]
[346607880,1735124137109,889.47,9.918e-05,2]
[346607881,1735124137188,500.0,9.917e-05,2]
[346607882,1735124137277,500.0,9.643e-05,2]
[346607883,1735124137355,500.0,0.00010191,2]
[346607884,1735124137425,500.0,9.645e-05,2]
[346607885,1735124137513,889.47,0.00010192,2]
[346607886,1735124137585,500.0,0.00010465,2]
[346607887,1735124137659,500.0,9.643e-05,2]
[346607888,1735124137760,889.47,0.00010466,2]
[346607889,1735124137852,889.47,0.0001074,2]
[346607890,1735124137969,500.0,0.00010739,2]
[346607891,1735124138037,300.0,9.644e-05,2]
[346607892,1735124138193,679.49,9.645e-05,2]
[346607893,1735124138361,679.49,9.919e-05,2]
[346607894,1735124138480,679.49,0.00010193,2]
[346607895,1735124138549,500.0,9.645e-05,2]
[346607896,1735124138659,679.49,0.00010467,2]
[346607897,1735124138778,679.49,0.00010741,2]
[346607898,1735124138897,505.98765573,9.644e-05,2]
[346607899,1735124139118,5000.0,9.645e-05,2]
[346607900,1735124139434,500.0,9.643e-05,2]
[346607901,1735124139552,500.0,9.644e-05,2]
[346607902,1735124139639,540.57,9.643e-05,2]
[346607903,1735124139839,500.0,9.643e-05,2]
[346607904,1735124139918,500.0,9.645e-05,2]
[346607905,1735124140004,297.29,9.919e-05,2]
[346607906,1735124140240,500.0,9.643e-05,2]
[346607907,1735124140318,500.0,9.643e-05,2]
[346607908,1735124140385,500.0,9.643e-05,2]
[346607909,1735124140463,500.0,9.644e-05,2]
[346607910,1735124140577,500.0,9.645e-05,2]
[346607911,1735124140641,513.99,9.643e-05,2]
[346607912,1735124140705,1883.15,9.644e-05,2]
[346607913,1735124140769,1883.15,9.918e-05,2]
[346607914,1735124140885,500.0,9.643e-05,2]
[346607915,1735124140956,1883.15,0.00010192,2]
[346607916,1735124141023,500.0,9.643e-05,2]
[346607917,1735124141377,1883.15,0.00010466,2]
[346607918,1735124141440,1883.15,0.0001074,2]
[346607919,1735124141656,500.0,9.643e-05,2]
[346607920,1735124141720,500.0,9.645e-05,2]
[346607921,1735124141947,500.0,9.643e-05,2]
[346607922,1735124142053,500.0,9.643e-05,2]
[346607923,1735124142178,500.0,9.643e-05,2]
[346607924,1735124142243,500.0,9.643e-05,2]
[346607925,1735124142320,630.87,9.917e-05,2]
[346607926,1735124142508,500.0,9.645e-05,2]
[346607927,1735124142580,325.82,9.919e-05,2]
[346607928,1735124142759,500.0,9.644e-05,2]
[346607929,1735124142826,500.0,9.643e-05,2]
[346607930,1735124142942,984.71,9.643e-05,2]
[346607931,1735124143054,984.71,9.917e-05,2]
[346607932,1735124143119,500.0,9.645e-05,2]
[346607933,1735124143199,984.71,0.00010191,2]
[346607934,1735124143264,204.65,9.919e-05,2]
[346607935,1735124143334,984.71,0.00010465,2]
[346607936,1735124143456,2082.95,9.643e-05,2]
[346607937,1735124143522,984.71,0.00010739,2]
[346607938,1735124143586,500.0,9.644e-05,2]
[346607939,1735124143654,2082.95,9.917e-05,2]
[346607940,1735124143761,2053.19,9.644e-05,2]
[346607941,1735124143837,2082.95,0.00010191,2]
[346607942,1735124143906,2053.19,9.918e-05,2]
[346607943,1735124143974,2082.95,0.00010465,2]
[346607944,1735124144106,2053.19,0.00010192,2]
[346607945,1735124144182,2082.95,0.00010739,2]
[346607946,1735124144363,2053.19,0.00010466,2]
[346607947,1735124144457,500.0,9.643e-05,2]
[346607948,1735124144535,500.0,9.645e-05,2]
[346607949,1735124144652,2053.19,0.0001074,2]
[346607950,1735124144763,513.19,9.643e-05,2]
[346607951,1735124144931,504.24096238,9.644e-05,2]
[346607952,1735124145042,500.0,9.645e-05,2]
[346607953,1735124145330,500.0,9.643e-05,2]
[346607954,1735124145490,500.0,9.644e-05,2]
[346607955,1735124145557,500.0,9.643e-05,2]
[346607956,1735124145635,2087.9573,0.00010093,2]
[346607957,1735124145714,500.0,9.645e-05,2]
[346607958,1735124145780,500.0,9.643e-05,2]
[346607959,1735124145856,500.0,9.643e-05,2]
[346607960,1735124145992,500.0,9.643e-05,2]
[346607961,1735124146123,2255.39,9.643e-05,2]
[346607962,1735124146195,1427.41,9.644e-05,2]
[346607963,1735124146264,2255.39,9.917e-05,2]
[346607964,1735124146348,500.0,9.643e-05,2]
[346607965,1735124146422,1427.41,9.918e-05,2]
[346607966,1735124146493,2255.39,0.00010191,2]
[346607967,1735124146563,528.01,9.917e-05,2]
[346607968,1735124146631,1427.41,0.00010192,2]
[346607969,1735124146700,2255.39,0.00010465,2]
[346607970,1735124147059,1427.41,0.00010466,2]
[346607971,1735124147133,2255.39,0.00010739,2]
[346607972,1735124147204,1427.41,0.0001074,2]
[346607973,1735124147289,500.0,9.644e-05,2]
[346607974,1735124147393,500.0,9.643e-05,2]
[346607975,1735124147579,9414.7663,0.00010847,2]
[346607976,1735124147658,500.0,9.643e-05,2]
[346607977,1735124147734,500.0,9.643e-05,2]
[346607978,1735124147928,500.0,9.643e-05,2]
[346607979,1735124148111,500.0,9.917e-05,2]
[346607980,1735124148208,500.0,9.645e-05,2]
[346607981,1735124148296,361.9,9.919e-05,2]
[346607982,1735124148505,500.0,9.643e-05,2]
[346607983,1735124148583,500.0,9.917e-05,2]
[346607984,1735124148661,285.32,0.00010191,2]
[346607985,1735124148736,1959.92,9.643e-05,2]
[346607986,1735124148808,500.0,9.643e-05,2]
[346607987,1735124148874,1959.92,9.917e-05,2]
[346607988,1735124148947,1959.92,0.00010191,2]
[346607989,1735124149013,1959.92,0.00010465,2]
[346607990,1735124149093,1959.92,0.00010739,2]
[346607991,1735124149167,500.0,9.643e-05,2]
[346607992,1735124149241,500.0,9.643e-05,2]
[346607993,1735124149307,681.89,9.643e-05,2]
[346607994,1735124149371,500.0,9.917e-05,2]
[346607995,1735124149443,681.89,9.917e-05,2]
[346607996,1735124149519,681.89,0.00010191,2]
[346607997,1735124149585,500.0,9.644e-05,2]
[346607998,1735124149653,681.89,0.00010465,2]
[346607999,1735124149728,681.89,0.00010739,2]
[346608000,1735124149822,500.0,9.643e-05,2]
[346608001,1735124149893,500.0,9.643e-05,2]
[346608002,1735124150031,500.0,9.643e-05,2]
[346608003,1735124150120,500.0,9.917e-05,2]
[346608004,1735124150199,500.0,9.644e-05,2]
[346608005,1735124150282,500.0,9.918e-05,2]
[346608006,1735124150364,500.0,0.00010192,2]
[346608007,1735124150440,500.0,9.645e-05,2]
[346608008,1735124150516,500.0,0.00010466,2]
[346608009,1735124150633,500.0,9.643e-05,2]
[346608010,1735124150711,500.0,0.0001074,2]
[346608011,1735124150916,163.340599,9.644e-05,2]
[346608012,1735124151216,500.0,9.644e-05,2]
[346608013,1735124151280,500.0,9.643e-05,2]
[346608014,1735124151550,1549.5,9.643e-05,2]
[346608015,1735124151613,500.0,9.918e-05,2]
[346608016,1735124151688,510.46659012,9.644e-05,2]
[346608017,1735124151750,1549.5,9.917e-05,2]
[346608018,1735124151812,500.0,0.00010192,2]
[346608019,1735124151910,1549.5,0.00010191,2]
[346608020,1735124151974,294.64,0.00010466,2]
[346608021,1735124152044,1549.5,0.00010465,2]
[346608022,1735124152120,1549.5,0.00010739,2]
[346608023,1735124152182,500.0,9.643e-05,2]
[346608024,1735124152264,500.0,9.917e-05,2]
[346608025,1735124152363,5714.1774,0.00010093,2]
[346608026,1735124152439,500.0,9.645e-05,2]
[346608027,1735124152628,500.0,9.644e-05,2]
[346608028,1735124152698,500.0,9.918e-05,2]
[346608029,1735124152760,500.0,9.643e-05,2]
[346608030,1735124152822,500.0,0.00010192,2]
[346608031,1735124152881,500.0,9.917e-05,2]
[346608032,1735124152958,1046.06,9.643e-05,2]
[346608033,1735124153059,500.0,0.00010466,2]
[346608034,1735124153120,500.0,0.00010191,2]
[346608035,1735124153190,1046.06,9.917e-05,2]
[346608036,1735124153250,500.0,0.00010465,2]
[346608037,1735124153312,500.0,9.645e-05,2]
[346608038,1735124153378,1046.06,0.00010191,2]
[346608039,1735124153440,500.0,0.00010739,2]
[346608040,1735124153503,500.0,9.643e-05,2]
[346608041,1735124153564,414.44,0.0001074,2]
[346608042,1735124153631,1046.06,0.00010465,2]
[346608043,1735124153698,182.6,9.917e-05,2]
[346608044,1735124153768,1046.06,0.00010739,2]
[346608045,1735124153830,500.0,9.643e-05,2]
[346608046,1735124153963,158.131169,9.644e-05,2]
[346608047,1735124154051,500.0,9.645e-05,2]
[346608048,1735124154124,500.0,9.643e-05,2]
[346608049,1735124154231,500.0,9.643e-05,2]
[346608050,1735124154362,500.0,9.644e-05,2]
[346608051,1735124154426,500.0,9.643e-05,2]
[346608052,1735124154525,500.0,9.645e-05,2]
[346608053,1735124154640,561.96,9.643e-05,2]
[346608054,1735124154770,500.0,9.643e-05,2]
[346608055,1735124154836,500.0,9.643e-05,2]
[346608056,1735124154904,500.0,9.917e-05,2]
[346608057,1735124154982,500.0,9.643e-05,2]
[346608058,1735124155050,500.0,0.00010191,2]
[346608059,1735124155126,500.0,0.00010465,2]
[346608060,1735124155195,376.25,9.917e-05,2]
[346608061,1735124155269,500.0,0.00010739,2]
[346608062,1735124155351,500.0,9.643e-05,2]
[346608063,1735124155426,500.0,9.643e-05,2]
[346608064,1735124155487,500.0,9.644e-05,2]
[346608065,1735124155594,500.0,9.644e-05,2]
[346608066,1735124155701,500.0,9.643e-05,2]
[346608067,1735124155765,1569.54,9.643e-05,2]
[346608068,1735124155836,1426.71,9.643e-05,2]
[346608069,1735124155908,1426.71,9.917e-05,2]
[346608070,1735124155972,1569.54,9.917e-05,2]
[346608071,1735124156049,500.0,9.643e-05,2]
[346608072,1735124156110,1426.71,0.00010191,2]
[346608073,1735124156178,1569.54,0.00010191,2]
[346608074,1735124156253,1426.71,0.00010465,2]
[346608075,1735124156376,1569.54,0.00010465,2]
[346608076,1735124156449,1426.71,0.00010739,2]
[346608077,1735124156526,500.0,9.645e-05,2]
[346608078,1735124156592,1569.54,0.00010739,2]
[346608079,1735124156746,3090.6,9.644e-05,2]
[346608080,1735124156820,500.0,9.644e-05,2]
[346608081,1735124156902,3090.6,9.918e-05,2]
[346608082,1735124156968,734.97,9.643e-05,2]
[346608083,1735124157038,524.02,9.643e-05,2]
[346608084,1735124157114,3090.6,0.00010192,2]
[346608085,1735124157182,734.97,9.917e-05,2]
[346608086,1735124157251,154.44,9.918e-05,2]
[346608087,1735124157329,500.0,9.643e-05,2]
[346608088,1735124157403,734.97,0.00010191,2]
[346608089,1735124157517,3090.6,0.00010466,2]
[346608090,1735124157630,734.97,0.00010465,2]
[346608091,1735124157708,3090.6,0.0001074,2]
[346608092,1735124157782,500.0,9.645e-05,2]
[346608093,1735124157848,734.97,0.00010739,2]
[346608094,1735124158178,500.0,9.644e-05,2]
[346608095,1735124158641,1034.61,9.643e-05,2]
[346608096,1735124158730,453.32,9.918e-05,2]
[346608097,1735124158802,1034.61,9.917e-05,2]
[346608098,1735124158900,1034.61,0.00010191,2]
[346608099,1735124158994,1034.61,0.00010465,2]
[346608100,1735124159085,1034.61,0.00010739,2]
[346608101,1735124159177,469.32818564,0.00010738,2]
[346608102,1735124159250,318.19692873,0.00010738,2]
[346608103,1735124159381,500.0,9.643e-05,2]
[346608104,1735124159484,1268.83,9.644e-05,2]
[346608105,1735124159563,500.0,9.645e-05,2]
[346608106,1735124159635,1268.83,9.918e-05,2]
[346608107,1735124159747,1268.83,0.00010192,2]
[346608108,1735124159877,255.82362643,9.643e-05,2]
[346608109,1735124159964,500.0,9.643e-05,2]
[346608110,1735124160057,1844.18,9.643e-05,2]
[346608111,1735124160140,1268.83,0.00010466,2]
[346608112,1735124160216,1844.18,9.917e-05,2]
[346608113,1735124160395,1268.83,0.0001074,2]
[346608114,1735124160465,1844.18,0.00010191,2]
[346608115,1735124160546,1844.18,0.00010465,2]
[346608116,1735124160631,1844.18,0.00010739,2]
[346608117,1735124160726,500.0,9.643e-05,2]
[346608118,1735124160879,500.0,9.643e-05,2]
[346608119,1735124160960,664.87,9.643e-05,2]
[346608120,1735124161056,642.84,9.645e-05,2]
[346608121,1735124161137,664.87,9.917e-05,2]
[346608122,1735124161238,664.87,0.00010191,2]
[346608123,1735124161343,664.87,0.00010465,2]
[346608124,1735124161430,523.3,9.643e-05,2]
[346608125,1735124161515,664.87,0.00010739,2]
[346608126,1735124162215,500.0,9.645e-05,2]
[346608127,1735124162306,500.0,9.643e-05,2]
[346608128,1735124162377,500.0,9.919e-05,2]
[346608129,1735124162455,500.0,9.643e-05,2]
[346608130,1735124162528,500.0,9.917e-05,2]
[346608131,1735124162615,500.0,0.00010191,2]
[346608132,1735124162688,189.11,9.917e-05,2]
[346608133,1735124162777,773.19,9.643e-05,2]
[346608134,1735124162855,500.0,0.00010465,2]
[346608135,1735124162936,773.19,9.917e-05,2]
[346608136,1735124163016,500.0,9.644e-05,2]
[346608137,1735124163096,193.04,0.00010739,2]
[346608138,1735124163179,773.19,0.00010191,2]
[346608139,1735124163302,773.19,0.00010465,2]
[346608140,1735124163414,773.19,0.00010739,2]
[346608141,1735124163502,500.0,9.645e-05,2]
[346608142,1735124163591,574.82574734,9.644e-05,2]
[346608143,1735124163970,500.0,9.919e-05,2]
[346608144,1735124164074,500.0,9.643e-05,2]
[346608145,1735124164179,500.0,0.00010193,2]
[346608146,1735124164354,500.0,0.00010467,2]
[346608147,1735124164448,500.0,9.643e-05,2]
[346608148,1735124164577,500.0,0.00010741,2]
[346608149,1735124164662,500.0,9.917e-05,2]
[346608150,1735124164729,500.0,9.643e-05,2]
[346608151,1735124164811,500.0,0.00010191,2]
[346608152,1735124164917,500.0,0.00010465,2]
[346608153,1735124165018,500.0,9.644e-05,2]
[346608154,1735124165100,500.0,0.00010739,2]
[346608155,1735124165166,3457.35,9.643e-05,2]
[346608156,1735124165268,3457.35,9.917e-05,2]
[346608157,1735124165338,500.0,9.643e-05,2]
[346608158,1735124165448,3457.35,0.00010191,2]
[346608159,1735124165551,3457.35,0.00010465,2]
[346608160,1735124165655,3457.35,0.00010739,2]
[346608161,1735124165740,500.0,9.643e-05,2]
[346608162,1735124165819,500.0,9.644e-05,2]
[346608163,1735124165898,500.0,9.918e-05,2]
[346608164,1735124165983,500.0,0.00010192,2]
[346608165,1735124166079,500.0,9.643e-05,2]
[346608166,1735124166145,500.0,0.00010466,2]
[346608167,1735124166240,500.0,0.0001074,2]
[346608168,1735124166485,500.0,9.643e-05,2]
[346608169,1735124166590,500.0,9.645e-05,2]
[346608170,1735124166662,463.27,9.917e-05,2]
[346608171,1735124166738,500.0,9.643e-05,2]
[346608172,1735124166821,500.0,9.919e-05,2]
[346608173,1735124166894,542.04675135,9.644e-05,2]
[346608174,1735124166971,277.15,0.00010193,2]
[346608175,1735124167078,500.0,9.643e-05,2]
[346608176,1735124167246,500.0,9.643e-05,2]
[346608177,1735124167334,500.0,9.917e-05,2]
[346608178,1735124167432,500.0,9.644e-05,2]
[346608179,1735124167552,500.0,9.643e-05,2]
[346608180,1735124167629,500.0,0.00010191,2]
[346608181,1735124167695,500.0,9.645e-05,2]
[346608182,1735124167768,416.66666,0.0001,2]
[346608183,1735124167851,500.0,0.00010465,2]
[346608184,1735124167959,500.0,0.00010739,2]
[346608185,1735124168088,500.0,9.643e-05,2]
[346608186,1735124168226,274.99177056,9.643e-05,2]
[346608187,1735124168298,500.0,9.643e-05,2]
[346608188,1735124168425,188.94,9.917e-05,2]
[346608189,1735124168502,500.0,9.644e-05,2]
[346608190,1735124168588,491.52257952,9.918e-05,2]
[346608191,1735124168655,500.0,9.643e-05,2]
[346608192,1735124168764,3137.29,9.643e-05,2]
[346608193,1735124168832,3630.0,9.643e-05,2]
[346608194,1735124168897,500.0,9.643e-05,2]
[346608195,1735124168972,3137.29,9.917e-05,2]
[346608196,1735124169047,3630.0,9.917e-05,2]
[346608197,1735124169119,3137.29,0.00010191,2]
[346608198,1735124169187,500.0,9.644e-05,2]
[346608199,1735124169259,3630.0,0.00010191,2]
[346608200,1735124169325,500.0,9.644e-05,2]
[346608201,1735124169392,500.0,9.643e-05,2]
[346608202,1735124169467,3137.29,0.00010465,2]
[346608203,1735124169535,500.0,9.918e-05,2]
[346608204,1735124169604,3630.0,0.00010465,2]
[346608205,1735124169673,500.0,9.645e-05,2]
[346608206,1735124169737,3137.29,0.00010739,2]
[346608207,1735124169803,349.31450481,0.00010192,2]
[346608208,1735124169869,3630.0,0.00010739,2]
[346608209,1735124170369,500.0,9.644e-05,2]
[346608210,1735124170442,500.0,9.643e-05,2]
[346608211,1735124170569,500.0,9.643e-05,2]
[346608212,1735124170638,500.0,9.917e-05,2]
[346608213,1735124170711,500.0,9.645e-05,2]
[346608214,1735124170791,739.23,9.644e-05,2]
[346608215,1735124170859,500.0,9.643e-05,2]
[346608216,1735124170931,289.26,9.919e-05,2]
[346608217,1735124171005,500.0,9.917e-05,2]
[346608218,1735124171081,739.23,9.918e-05,2]
[346608219,1735124171153,500.0,0.00010191,2]
[346608220,1735124171221,739.23,0.00010192,2]
[346608221,1735124171287,500.0,0.00010465,2]
[346608222,1735124171351,500.0,0.00010739,2]
[346608223,1735124171414,739.23,0.00010466,2]
[346608224,1735124171499,739.23,0.0001074,2]
[346608225,1735124171578,500.0,9.643e-05,2]
[346608226,1735124171776,500.0,9.643e-05,2]
[346608227,1735124172080,590.74,9.917e-05,2]
[346608228,1735124172182,1339.59,9.643e-05,2]
[346608229,1735124172269,1339.59,9.917e-05,2]
[346608230,1735124172355,1339.59,0.00010191,2]
[346608231,1735124172417,500.0,9.645e-05,2]
[346608232,1735124172499,567.37849261,9.643e-05,2]
[346608233,1735124172583,1339.59,0.00010465,2]
[346608234,1735124172666,1339.59,0.00010739,2]
[346608235,1735124172752,500.0,9.643e-05,2]
[346608236,1735124172846,500.0,9.917e-05,2]
[346608237,1735124173109,500.0,9.645e-05,2]
[346608238,1735124173295,500.0,9.643e-05,2]
[346608239,1735124173382,1307.72,9.643e-05,2]
[346608240,1735124173463,500.0,9.917e-05,2]
[346608241,1735124173561,1307.72,9.917e-05,2]
[346608242,1735124173640,500.0,0.00010191,2]
[346608243,1735124173715,1307.72,0.00010191,2]
[346608244,1735124173791,500.0,9.643e-05,2]
[346608245,1735124173860,500.0,0.00010465,2]
[346608246,1735124173938,1307.72,0.00010465,2]
[346608247,1735124174015,500.0,0.00010739,2]
[346608248,1735124174091,1307.72,0.00010739,2]
[346608249,1735124174161,500.0,9.645e-05,2]
[346608250,1735124174309,21718.9,9.643e-05,2]
[346608251,1735124174405,21718.9,9.917e-05,2]
[346608252,1735124174488,21718.9,0.00010191,2]
[346608253,1735124174636,500.0,9.643e-05,2]
[346608254,1735124174711,21718.9,0.00010465,2]
[346608255,1735124174799,500.0,9.645e-05,2]
[346608256,1735124174873,21718.9,0.00010739,2]
[346608257,1735124174946,500.0,9.919e-05,2]
[346608258,1735124175047,184.04,0.00010193,2]
[346608259,1735124175124,500.0,9.644e-05,2]
[346608260,1735124175248,500.0,9.918e-05,2]
[346608261,1735124175395,500.0,0.00010192,2]
[346608262,1735124175477,500.0,0.00010466,2]
[346608263,1735124175564,500.0,0.0001074,2]
[346608264,1735124175675,500.0,9.645e-05,2]
[346608265,1735124175770,500.0,9.919e-05,2]
[346608266,1735124176151,500.0,0.00010193,2]
[346608267,1735124176233,500.0,9.643e-05,2]
[346608268,1735124176313,676.51,9.643e-05,2]
[346608269,1735124176388,500.0,9.643e-05,2]
[346608270,1735124176468,676.51,9.917e-05,2]
[346608271,1735124176538,500.0,9.643e-05,2]
[346608272,1735124176623,676.51,0.00010191,2]
[346608273,1735124176696,500.0,0.00010467,2]
[346608274,1735124176765,536.92,9.644e-05,2]
[346608275,1735124176833,500.0,9.643e-05,2]
[346608276,1735124176906,676.51,0.00010465,2]
[346608277,1735124176996,500.0,0.00010741,2]
[346608278,1735124177092,520.53244493,9.917e-05,2]
[346608279,1735124177167,676.51,0.00010739,2]
[346608280,1735124177272,500.0,9.643e-05,2]
[346608281,1735124177392,500.0,9.643e-05,2]
[346608282,1735124177535,500.0,9.643e-05,2]
[346608283,1735124177616,500.0,9.917e-05,2]
[346608284,1735124177750,211.54,0.00010191,2]
[346608285,1735124177837,1407.43,9.643e-05,2]
[346608286,1735124177912,651.25,9.644e-05,2]
[346608287,1735124177976,1407.43,9.917e-05,2]
[346608288,1735124178047,651.25,9.918e-05,2]
[346608289,1735124178113,1407.43,0.00010191,2]
[346608290,1735124178190,500.0,9.643e-05,2]
[346608291,1735124178265,651.25,0.00010192,2]
[346608292,1735124178337,1407.43,0.00010465,2]
[346608293,1735124178463,651.25,0.00010466,2]
[346608294,1735124178530,500.0,9.643e-05,2]
[346608295,1735124178595,1407.43,0.00010739,2]
[346608296,1735124178679,651.25,0.0001074,2]
[346608297,1735124178876,500.0,9.644e-05,2]
[346608298,1735124178993,500.0,9.645e-05,2]
[346608299,1735124179344,500.0,9.643e-05,2]
[346608300,1735124179419,500.0,9.917e-05,2]
[346608301,1735124179499,500.0,9.643e-05,2]
[346608302,1735124179572,500.0,0.00010191,2]
[346608303,1735124179642,500.0,9.643e-05,2]
[346608304,1735124179717,500.0,9.917e-05,2]
[346608305,1735124179788,500.0,0.00010465,2]
[346608306,1735124179884,500.0,0.00010739,2]
[346608307,1735124180101,500.0,9.643e-05,2]
[346608308,1735124180177,500.0,9.917e-05,2]
[346608309,1735124180244,500.0,9.643e-05,2]
[346608310,1735124180315,500.0,9.917e-05,2]
[346608311,1735124180390,500.0,9.643e-05,2]
[346608312,1735124180507,2179.7,9.643e-05,2]
[346608313,1735124180577,500.0,9.645e-05,2]
[346608314,1735124180639,500.0,9.643e-05,2]
[346608315,1735124180702,2179.7,9.917e-05,2]
[346608316,1735124180767,2179.7,0.00010191,2]
[346608317,1735124180830,500.0,9.643e-05,2]
[346608318,1735124180892,500.0,9.643e-05,2]
[346608319,1735124180954,2179.7,0.00010465,2]
[346608320,1735124181020,500.0,9.917e-05,2]
[346608321,1735124181091,2179.7,0.00010739,2]
[346608322,1735124181151,321.77078249,0.00010191,2]
[346608323,1735124181226,1588.89,9.643e-05,2]
[346608324,1735124181310,1588.89,9.917e-05,2]
[346608325,1735124181380,919.66,9.643e-05,2]
[346608326,1735124181499,919.66,9.917e-05,2]
[346608327,1735124181579,500.0,9.644e-05,2]
[346608328,1735124181642,919.66,0.00010191,2]
[346608329,1735124181705,500.0,9.643e-05,2]
[346608330,1735124181790,1588.89,0.00010191,2]
[346608331,1735124181865,919.66,0.00010465,2]
[346608332,1735124181948,1588.89,0.00010465,2]
[346608333,1735124182009,919.66,0.00010739,2]
[346608334,1735124182609,1588.89,0.00010739,2]
[346608335,1735124182786,3160.39,9.643e-05,2]
[346608336,1735124182856,3160.39,9.917e-05,2]
[346608337,1735124182924,3160.39,0.00010191,2]
[346608338,1735124183028,663.27,9.644e-05,2]
[346608339,1735124183111,663.27,9.918e-05,2]
[346608340,1735124183175,3160.39,0.00010465,2]
[346608341,1735124183289,663.27,0.00010192,2]
[346608342,1735124183351,3160.39,0.00010739,2]
[346608343,1735124183415,663.27,0.00010466,2]
[346608344,1735124183508,663.27,0.0001074,2]
[346608345,1735124183597,500.0,9.643e-05,2]
[346608346,1735124184019,500.0,9.643e-05,2]
[346608347,1735124184131,500.0,9.643e-05,2]
[346608348,1735124184224,500.0,9.917e-05,2]
[346608349,1735124184297,297.42,0.00010191,2]
[346608350,1735124184434,500.0,9.643e-05,2]
[346608351,1735124184592,380.44372162,9.643e-05,2]
[346608352,1735124184677,757.62,9.643e-05,2]
[346608353,1735124184772,757.62,9.917e-05,2]
[346608354,1735124184869,757.62,0.00010191,2]
[346608355,1735124184986,500.0,9.643e-05,2]
[346608356,1735124185060,757.62,0.00010465,2]
[346608357,1735124185149,1656.26,9.643e-05,2]
[346608358,1735124185221,757.62,0.00010739,2]
[346608359,1735124185289,500.0,9.643e-05,2]
[346608360,1735124185367,1656.26,9.917e-05,2]
[346608361,1735124185437,249.63,9.917e-05,2]
[346608362,1735124185504,1656.26,0.00010191,2]
[346608363,1735124185604,1656.26,0.00010465,2]
[346608364,1735124185680,1368.48,9.643e-05,2]
[346608365,1735124185765,1368.48,9.917e-05,2]
[346608366,1735124185842,1656.26,0.00010739,2]
[346608367,1735124185915,1368.48,0.00010191,2]
[346608368,1735124185982,500.0,9.643e-05,2]